Cogmind - Beta 9.2 @@@ ROGUE MODE // 2019.12.04 @ 01:05:57 Player: Dimsum Result: Self-destructed Performance ------------- Evolutions (2) 1000 Regions Visited (3) 600 Robots Destroyed (15) 75 Value Destroyed (485) 485 Prototype IDs (0) 0 Alien Tech Used (0) 0 Bonus (0) 0 TOTAL SCORE: 2160 Bonus ------- None Cogmind --------- Core Integrity 515/550 Matter 300/300 Energy 100/100 System Corruption 0% Temperature Cool (0) Movement Treading (160) Location -8/Materials Parts ------- > --- POWER (1) -------- (None) > --- PROPULSION (3) --- Improved Treads Improved Treads > --- UTILITY (4) ------ Heat Sink Medium Storage Unit Medium Storage Unit > --- WEAPON (3) ------- Medium Laser Heavy Assault Rifle > --- INVENTORY (12) --- Improved Ion Engine Improved Ion Engine Light Nuclear Core Peak State ------------ > --- POWER ------------ Improved Ion Engine > --- PROPULSION ------- Improved Treads Improved Treads > --- UTILITY ---------- Heat Sink Medium Storage Unit > --- WEAPON ----------- Medium Laser Particle Cannon Heavy Assault Rifle > --- INVENTORY -------- Improved Ion Engine Improved Ion Engine Light Nuclear Core Aluminum Leg Aluminum Leg Aluminum Leg Aluminum Leg Medium Storage Unit [Rating: 14] Favorites ----------- Power Improved Ion Engine Engine Improved Ion Engine Propulsion Aluminum Leg Treads Improved Treads Leg Aluminum Leg Utility Medium Storage Unit Device Heat Sink Storage Medium Storage Unit Weapon Medium Laser Energy Gun Medium Laser Energy Cannon Particle Cannon Ballistic Gun Light Assault Rifle Build | -11 -10 -9 -8 ------- Run | Scr Mat Mat Mat Slots Evolved 4 | . . 2 2 Power . | . . . . Propulsion 1 | . . 1 . Utility 2 | . . . 2 Weapon 1 | . . 1 . Parts Attached 29 | 6 11 11 1 Power 3 | 1 2 . . Engine 3 | 1 2 . . Core . | . . . . Reactor . | . . . . Propulsion 9 | 2 1 6 . Treads 2 | . . 2 . Leg 7 | 2 1 4 . Wheel . | . . . . Hover . | . . . . Flight . | . . . . Utility 7 | 1 5 . 1 Device 1 | . 1 . . Storage 6 | 1 4 . 1 Processor . | . . . . Hackware . | . . . . Protection . | . . . . Artifact . | . . . . Weapon 10 | 2 3 5 . Energy Gun 6 | 1 3 2 . Energy Cannon 2 | . . 2 . Ballistic Gun 2 | 1 . 1 . Ballistic Cannon . | . . . . Launcher . | . . . . Special Weapon . | . . . . Impact Weapon . | . . . . Slashing Weapon . | . . . . Piercing Weapon . | . . . . Special Melee Weapon . | . . . . Unidentified Prototypes . | . . . . Parts Lost 10 | . 4 4 2 Power 2 | . 1 . 1 Propulsion 1 | . 1 . . Utility . | . . . . Weapon 7 | . 2 4 1 Highest Loss Streak 4 | . 4 2 2 Average Slot Usage (%) 94 | . 94 94 76 Engine 12 | . 14 11 6 Treads 1 | . . 3 18 Leg 26 | . 28 26 . Device 4 | . . 11 9 Storage 18 | . 22 11 18 Energy Gun 18 | . 19 17 9 Energy Cannon 3 | . . 9 6 Ballistic Gun 6 | . 8 4 9 Naked Turns . | . . . . Heaviest Build 33 | 10 21 25 33 Greatest Support 46 | 20 20 46 46 Greatest Overweight (x) 1 | . 1 1 . Average Overweight (x) . | . . . . Largest Inventory Capacity 16 | 6 16 8 12 Average Capacity 8 | 5 9 8 12 Most Carried 8 | 2 8 8 3 Average Carried 5 | 1 5 7 3 Final Capacity 12 | 6 8 8 12 Final Carried 8 | 2 8 4 3 Class Distribution -------------------- 61% | Mutant 27% | Gunner 8% | Scavenger-Gunner Dominant Class ---------------- Mutant | -10/Materials Gunner | -9/Materials Gunner | -8/Materials Resources | -11 -10 -9 -8 ----------- Run | Scr Mat Mat Mat Matter Collected 551 | 241 114 160 36 Remotely . | . . . . Salvage Created 592 | . 190 345 57 Parts 31 | . 5 25 1 Haulers Intercepted . | . . . . Recyclers Shooed . | . . . . Parts Field Recycled . | . . . . Retrieved Matter . | . . . . Parts Self-Destructed . | . . . . Prevented . | . . . . Kills | -11 -10 -9 -8 ------- Run | Scr Mat Mat Mat Combat Hostiles Destroyed 15 | . 4 10 1 Guns 11 | . 4 6 1 Cannons 2 | . . 2 . AOE 2 | . . 2 . Classes Destroyed 3 | . 1 2 . Swarmer 4 | . . 4 . Grunt 9 | . 4 5 . Sentry 2 | . . 1 1 Best Kill Streak 6 | . 2 6 1 Combat Bots Only 6 | . 2 6 1 Max Kills in Single Turn 2 | . 1 2 1 Gunslinging . | . . . . Exploded 2 | . . 2 . Melee . | . . . . Uniques/NPCs Destroyed . | . . . . Combat | -11 -10 -9 -8 -------- Run | Scr Mat Mat Mat Damage Taken 1275 | . 548 555 172 Core 212 | . 137 40 35 Absorbed by Shields . | . . . . Core Remaining (%) 78 | 100 45 90 . Volleys Fired 83 | . 47 33 3 Largest 3 | . 2 3 2 Hottest 158 | . 90 158 73 Shots Fired 188 | . 92 90 6 Gun 165 | . 92 67 6 Cannon 23 | . . 23 . Launcher . | . . . . Special . | . . . . Kinetic 60 | . 38 19 3 Thermal 90 | . 45 42 3 Explosive . | . . . . Electromagnetic 38 | . 9 29 . Robot Hit Streak 11 | . 11 10 7 Robot Miss Streak 5 | . 2 5 1 Penetration Max . | . . . . Secondary Targets . | . . . . Shots Hit Robots 95 | . 31 60 4 Core Hits 27 | . 10 15 2 Critical Hits 1 | . 1 . . Critical Kills 1 | . 1 . . Critical Parts Destroyed . | . . . . Melee Attacks . | . . . . Impact . | . . . . Slashing . | . . . . Piercing . | . . . . Sneak Attacks . | . . . . Combat Hostiles . | . . . . Follow-up Attacks . | . . . . Damage Inflicted 1215 | . 355 790 70 Guns 938 | . 355 513 70 Cannons 143 | . . 143 . Explosions 134 | . . 134 . Melee . | . . . . Ramming . | . . . . Kinetic 209 | . 68 109 32 Thermal 648 | . 197 413 38 Explosive . | . . . . Electromagnetic 358 | . 90 268 . Impact . | . . . . Slashing . | . . . . Piercing . | . . . . Highest Corruption . | . . . . Average Corruption . | . . . . Corruption Purged . | . . . . Overload Shots . | . . . . Overflow Damage 7 | . . 7 . Projectiles . | . . . . Explosions 7 | . . 7 . Melee . | . . . . Knockbacks . | . . . . Impact . | . . . . Kinetic . | . . . . Secondary . | . . . . Self-Inflicted Damage 68 | . . 68 . Shots 2 | . . 2 . Rammed . | . . . . Targets Rammed . | . . . . Kicked . | . . . . Crushed . | . . . . Highest Temperature 356 | . 356 302 . Average Temperature 148 | . 159 134 . Received Heat Transfer 567 | . 312 219 36 Effects 1 | . 1 . . Energy Bleed 1 | . 1 . . Siege Activations . | . . . . Robots Corrupted . | . . . . Combat Hostiles . | . . . . Parts Fried . | . . . . Impact Corruptions . | . . . . Robots Melted . | . . . . Combat Hostiles . | . . . . Parts Melted 1 | . 1 . . Heat Transferred 1422 | . 532 779 111 Parts Sabotaged . | . . . . Parts Stolen . | . . . . Parts Stripped . | . . . . Power Chain Reactions 2 | . . 2 . Missiles Intercepted . | . . . . Alert | -11 -10 -9 -8 ------- Run | Scr Mat Mat Mat Peak Influence 261 | . 69 261 119 Average Influence 68 | . 34 132 108 Maximum Alert Level 1 | . . 1 . Low Security (%) 87 | 100 100 62 100 Level 1 12 | . . 37 . Level 2 . | . . . . Level 3 . | . . . . Level 4 . | . . . . Level 5 . | . . . . High Security . | . . . . Max Security . | . . . . Squads Dispatched 3 | . . 2 1 Investigation 1 | . . 1 . Extermination . | . . . . Reinforcement 2 | . . 1 1 Assault . | . . . . Garrison . | . . . . Intercept . | . . . . Construction Impeded . | . . . . Haulers Reinforced . | . . . . Stealth | -11 -10 -9 -8 --------- Run | Scr Mat Mat Mat Distress Signals 2 | . . 1 1 Communications Jammed . | . . . . Distress Signals . | . . . . Times Spotted 30 | . 7 19 4 Peak Tracking Total 6 | . 2 6 3 Tactical Retreats 5 | . 2 3 . Traps | -11 -10 -9 -8 ------- Run | Scr Mat Mat Mat Traps Triggered . | . . . . Indirectly . | . . . . Trap Hack Attempts . | . . . . Triggered . | . . . . Disarmed . | . . . . Reprogrammed . | . . . . Reused . | . . . . Traps Extracted . | . . . . Installed . | . . . . Triggered 1 | . . 1 . Machines | -11 -10 -9 -8 ---------- Run | Scr Mat Mat Mat Machines Disabled 1 | . . 1 . Max in Single Turn 1 | . . 1 . Machines Sabotaged . | . . . . Garrisons Compromised . | . . . . Overloaded Fab Kills . | . . . . Fab Network Shutdowns . | . . . . Hacking | -11 -10 -9 -8 --------- Run | Scr Mat Mat Mat Machines Accessed 5 | . 4 1 . Terminals 5 | . 4 1 . Fabricators . | . . . . Repair Stations . | . . . . Recycling Units . | . . . . Scanalyzers . | . . . . Garrison Access . | . . . . Total Hacks 25 | . 17 8 . Successful 13 | . 9 4 . Failed 12 | . 8 4 . Catastrophic 1 | . . 1 . Database Lockouts . | . . . . Manual 25 | . 17 8 . Terminals 25 | . 17 8 . Fabricators . | . . . . Repair Stations . | . . . . Recycling Units . | . . . . Scanalyzers . | . . . . Garrison Access . | . . . . Terminal Hacks 6 | . 4 2 . Terminal Index 2 | . 1 1 . Unreport Threat 1 | . 1 . . Locate Traps 3 | . 2 1 . Fabricator Hacks . | . . . . Repair Station Hacks . | . . . . Recycling Unit Hacks . | . . . . Scanalyzer . | . . . . Garrison Access Hacks . | . . . . Unauthorized Hacks 19 | . 14 5 . Terminals 7 | . 5 2 . Track 3 | . 2 1 . Botnet 4 | . 3 1 . Fabricators . | . . . . Repair Stations . | . . . . Recycling Units . | . . . . Scanalyzers . | . . . . Garrison Access . | . . . . Data Cores Recovered . | . . . . Used . | . . . . Hacking Detections 5 | . 4 1 . Full Trace Events . | . . . . Feedback Events . | . . . . Feedback Blocked . | . . . . Robot Schematics Acquired . | . . . . Robots Built . | . . . . Matter . | . . . . Time . | . . . . Total Robot Build Rating . | . . . . Part Schematics Acquired . | . . . . Parts Built . | . . . . Matter . | . . . . Time . | . . . . Total Part Build Rating . | . . . . Parts Repaired . | . . . . Time . | . . . . Parts Recycled . | . . . . Recycled Matter . | . . . . Retrieved Matter . | . . . . Retrieved Components . | . . . . Parts Scanalyzed . | . . . . Part Schematics Acquired . | . . . . Parts Damaged . | . . . . Bothacking | -11 -10 -9 -8 ------------ Run | Scr Mat Mat Mat Used RIF Installer . | . . . . Robots Hacked . | . . . . Non-combat . | . . . . Combat . | . . . . Robot Hacks Applied . | . . . . Relay Couplers Released . | . . . . Robots Rewired . | . . . . Allies Hacked . | . . . . Hacks Repelled . | . . . . Allies | -11 -10 -9 -8 -------- Run | Scr Mat Mat Mat Total Allies . | . . . . Largest Group . | . . . . Highest-Rated Group . | . . . . Highest-Rated Ally . | . . . . Total Orders . | . . . . Ally Attacks . | . . . . Total Damage . | . . . . Kills . | . . . . Allies Corrupted . | . . . . Allies Melted . | . . . . Intel | -11 -10 -9 -8 ------- Run | Scr Mat Mat Mat Robot Analysis Total . | . . . . Derelict Logs Recovered . | . . . . Drone Launches . | . . . . Drone Recoveries . | . . . . Exploration | -11 -10 -9 -8 ------------- Run | Scr Mat Mat Mat Turns Passed 1187 | 56 685 399 47 Spaces Moved 627 | 41 366 197 23 Core 5 | 5 . . . Treads 56 | . . 33 23 Legs 566 | 36 366 164 . Wheels . | . . . . Hover . | . . . . Flight . | . . . . Fastest Speed 50 | 50 120 120 160 Average Speed 125 | 111 121 130 160 Slowest Speed 180 | 120 150 180 160 Overloaded Moves . | . . . . Propulsion Burnouts . | . . . . Robots Hopped . | . . . . Cave-ins Triggered . | . . . . Exploration Rate (%) 19 | 3 50 20 5 Regions Visited 3 Branch Regions . Pre-discovered Areas . | . . . . Known Exits Taken . | . . . . Unknown Exits Taken 3 | 1 1 1 . Scrap Searched . | . . . . Spaces Dug . | . . . . Terrain Destroyed 4 | . . 4 . Melee . | . . . . Projectile . | . . . . AOE 4 | . . 4 . Actions | -11 -10 -9 -8 --------- Run | Scr Mat Mat Mat Total 869 | 48 525 269 27 Wait 100 | . 81 19 . Move 624 | 40 365 196 23 Hop . | . . . . Pick Up 16 | 2 13 1 . Fast Attach 12 | 6 2 4 . Attach 10 | . 5 4 1 Detach 4 | . 2 2 . Swap 7 | . 4 3 . Drop 13 | . 6 7 . Fire 83 | . 47 33 3 Melee . | . . . . Ram . | . . . . Kick . | . . . . Crush . | . . . . Escape Stasis . | . . . . Rewire . | . . . . Trap . | . . . . Miscellaneous . | . . . . Route ------- -11/Scrapyard -10/Materials (discovered 2 exits: *Mat / [*Min]) -9/Materials -8/Materials History --------- Turn | Location | Event 34 | -11/Scrapyard | Discovered new exit (range 15) 57 | -11/Scrapyard | Entered Materials 74 | -10/Materials | Discovered new exit (range 14) 319 | -10/Materials | Build established: Mutant 457 | -10/Materials | Core integrity fell below 50% 507 | -10/Materials | Lost 4 parts (1p1n2w) 717 | -10/Materials | Discovered new exit (range 11) 742 | -10/Materials | Entered another Materials area 742 | -9/Materials | Evolved 2 slots: Propulsion x1, Weapon x1 1135 | -9/Materials | Discovered new exit (range 5) 1141 | -9/Materials | Entered another Materials area 1141 | -8/Materials | Evolved 2 slots: Utility x2 1188 | -8/Materials | Self-destructed Last Messages --------------- 01103_ Acquired 39 matter. 01104_ U-05 Engineer lays Concrete. 01109_ K-01 Serf collects debris. 01114_ U-05 Engineer repairs door. 01116_ K-01 Serf collects debris. 01135_ EXIT=FOUND PARAMETERS=UTILITY_2 LOCATION=UNKNOWN GOAL=ESCAPE 01156_ W-25 Informer sends out distress signal. 01157_ ALERT: Hostiles spotted, dispatching reinforcements to Terminal M006. 01164_ K-01 Serf collects debris. 01171_ Particle Cannon destroyed. 01176_ Slug penetrates Wall. 01176_ Imp. Ion Engine destroyed. 01179_ Y-45 Defender destroyed. 01179_ Slug penetrates Wall. 01182_ Acquired 36 matter. 01185_ Slug penetrates Wall. Map ----- +----------------------------------------------------+ | ?????????????????????????????????? | | ?????????????????????????????????? | | ?????????????????????????????????? | | ?????????????????????????????????? | | ?????????????????????????????????? | | ?????????????????????????????????? | | ?????????????????????????????????? | | ?????????????????????????????????? | | ?????????????????????????????????? | | ?????????????????????????????????? | | ?????????????????????????????????? | | ?????????????????????????????????? | | ?????????????????????????????????? | | ?????????????????? ?????????????? | | ?????????????????? ?????????????? | | ?????????????????? ?????????????? | | ?????????????????# ?????????????? | | ?????????????????# #????????????? | | ?????????????????# #?#+?????##??? | | ?????????????????# #?# ????! ??? | | ?????????????????# #?# ???? ??? | | ?????????????????# #?# ??? """??? | | ?????????????????# #?# ???"""""?? | | ?????????????????# ### ## """""?? | | ?????????????????+ # """"" ? | | ?????????????????# @ """ # | | ?????????????????# h####+#o # | | ?????????????????# # %*# # | | ????????????###### + #?"T" # | | ????????????+ # #? # | | ????????????# # #??###### | | ????????????# # #???????? | | ????????????# # #???????? | | ??????????### # #???????? | | ??? # #???????? | | ??? ######### # #???????? | | ???? """??????????# ######???????? | | ??????????????????# #????????????? | | ??????????????????# #????????????? | | ??????????????????# #????????????? | | ??????????????????# #????????????? | | ??????????????????# #????????????? | | ?????????????###### ##???????????? | | ?????????????# #???????????? | | ?????????????# #???????????? | | ?????????????# #???????????? | | ?????????????# #####???????????? | | ?????????????# ????????????????? | | ?????????????# ?????????????????? | | ?????????????# ?????????????????? | +----------------------------------------------------+ Best States ------------- Heat Dissipation 41 Energy Generation 12 Energy Capacity 265 Matter Stores 300 Matter Capacity 300 Sight Range 16 Terrain Scan Density 10 Evasion (%) 40 Recoil Reduction 2 Item Schematics ----------------- None Robot Schematics ------------------ None Fabricated ------------ Nothing Alien Tech Used ----------------- None Achievements -------------- None Challenges ------------ None Game ------ Seed HelicalIonWeb Manual? 0 Play Time 00:12:24 Cumulative 36.1 hours Start 2019.12.04 @ 00:52:41 End 2019.12.04 @ 01:05:57 Sessions 1 Manual Loads 0 Difficulty Rogue Special Mode None Game No. 87 Rogue 87 Adventurer 0 Explorer 0 Win Type - Total 0 Types 0/0/0/0/0/0/0 Lore% 16 Gallery% 25 Achievement% 23 Wizard Run 0 Options --------- ASCII 1 Keyboard 1 Movement Vi Keybinds 0 Fullscreen 1 Font 18/SmallcapsGlow Map View 76x50 Tactical HUD 1 Map Filters NONE Filters NONE Steam 1 RUN: 4360e51b-c98f-4076-ac9e-5a5e6315eae0